Cogmind - Beta 15 @@@ ROGUE MODE // 2025.09.06 @ 06:41:28 Player: BVrutally Odd Result: Destroyed by G-47 Trooper with Particle Gun Performance ------------- Evolutions (2) 1000 Regions Visited (3) 600 Robots Destroyed (23) 115 Value Destroyed (564) 564 Prototype IDs (1) 20 Alien Tech Used (0) 0 Bonus (-5758) -5758 TOTAL SCORE: -3459 Bonus ------- Devolution -13500 Gauntlet 1647 No Salvage 958 Pure Core 1147 Scavenger 2000 Simple Hacker 490 Sticky Parts 1000 Trapped 500 Cogmind --------- Core Integrity 0/800 Matter 275/300 Energy 99/100 System Corruption 8% Temperature Cool (21) Movement Core (50) Location -8/Materials Parts ------- > --- POWER (2) -------- (None) > --- PROPULSION (7) --- (None) > --- UTILITY (6) ------ Improved Signal Interpreter Utility Shielding > --- WEAPON (3) ------- (None) > --- INVENTORY (0) ---- (None) Peak State ------------ > --- POWER ------------ Ion Engine > --- PROPULSION ------- VTOL Module Improved VTOL Module Improved VTOL Module > --- UTILITY ---------- Advanced Visual Processing Unit Improved Sensor Array Improved Signal Interpreter Utility Shielding System Shield > --- WEAPON ----------- Heavy Mace > --- INVENTORY -------- (None) [Rating: 27] Favorites ----------- Power Light Ion Engine Engine Light Ion Engine Propulsion Light Treads Treads Light Treads Flight Unit Improved VTOL Module Utility Improved Signal Interpreter Device Improved Sensor Array Processor Improved Signal Interpreter Hackware System Shield Protection Utility Shielding Weapon Small Laser Energy Gun Small Laser Launcher EMP Blaster Special Weapon Mining Laser Impact Weapon Heavy Mace Build | -11 -10 -9 -8 ------- Run | Yrd Mat Mat Mat Slots Evolved -2 | . . -1 -1 Power -1 | . . -1 . Propulsion . | . . . . Utility -1 | . . . -1 Weapon . | . . . . Parts Attached 20 | 6 2 2 10 Power 2 | 1 . . 1 Engine 2 | 1 . . 1 Core . | . . . . Reactor . | . . . . Propulsion 5 | 2 . . 3 Treads 2 | 2 . . . Leg . | . . . . Wheel . | . . . . Hover . | . . . . Flight 3 | . . . 3 Utility 5 | . . . 5 Device 1 | . . . 1 Storage . | . . . . Processor 2 | . . . 2 Hackware 1 | . . . 1 Protection 1 | . . . 1 Artifact . | . . . . Weapon 8 | 3 2 2 1 Energy Gun 3 | 3 . . . Energy Cannon . | . . . . Ballistic Gun . | . . . . Ballistic Cannon . | . . . . Launcher 2 | . 2 . . Special Weapon 2 | . . 2 . Impact Weapon 1 | . . . 1 Slashing Weapon . | . . . . Piercing Weapon . | . . . . Special Melee Weapon . | . . . . Unidentified Prototypes 1 | . . . 1 Parts Lost 17 | . 8 1 8 Power 2 | . 1 . 1 Propulsion 5 | . 2 . 3 Utility 3 | . . . 3 Weapon 7 | . 5 1 1 Highest Loss Streak 4 | . 4 1 4 To Critical Strikes . | . . . . Average Backups . | . . . . Power . | . . . . Propulsion . | . . . . Utility . | . . . . Weapon . | . . . . Tool/Special . | . . . . Unused Backups . | . . . . Power . | . . . . Propulsion . | . . . . Utility . | . . . . Weapon . | . . . . Tool/Special . | . . . . Average Slot Usage (%) 22 | . 22 1 25 Engine 2 | . 4 . . Treads 2 | . 5 . . Device 2 | . . . 4 Processor 2 | . . . 6 Hackware 1 | . . . 3 Protection 1 | . . . 3 Energy Gun 3 | . 7 . . Launcher 2 | . 5 . . Impact Weapon 1 | . . . 4 Peak Build Rating 27 | 6 7 1 27 Average Rating 8 | 5 5 . 12 On Entrance 1 | . 6 . . Naked Turns 101 | . 40 54 7 Heaviest Build 12 | 7 12 1 10 Greatest Support 40 | 40 40 3 10 Greatest Overweight (x) 3 | . 3 . 1 Average Overweight (x) . | . . . . Largest Inventory Capacity . | . . . . Average Capacity . | . . . . Most Carried . | . . . . Average Carried . | . . . . Final Capacity . | . . . . Final Carried . | . . . . Class Distribution -------------------- 53% | Mutant 36% | Gunner 9% | Scout Dominant Class ---------------- Gunner | -10/Materials Mutant | -9/Materials Mutant | -8/Materials Resources | -11 -10 -9 -8 ----------- Run | Yrd Mat Mat Mat Matter Collected 535 | 251 161 . 123 Remotely . | . . . . Salvage Created 854 | 92 541 . 221 Parts . | . . . . Haulers Intercepted 1 | . . . 1 Recyclers Shooed . | . . . . Parts Field Recycled . | . . . . Retrieved Matter . | . . . . Parts Self-Destructed . | . . . . Prevented . | . . . . Kills | -11 -10 -9 -8 ------- Run | Yrd Mat Mat Mat Combat Hostiles Destroyed 12 | . 9 . 3 Melee 1 | . . . 1 Guns 3 | . 3 . . AOE 6 | . 6 . . Classes Destroyed 7 | 2 2 . 3 Worker 3 | 1 2 . . Builder 3 | . 3 . . Tunneler 3 | 3 . . . Hauler 1 | . . . 1 Watcher 1 | . . . 1 Grunt 11 | . 9 . 2 Sentry 1 | . . . 1 Best Kill Streak 5 | 3 5 . 2 Combat Bots Only 4 | . 4 . 2 Max Kills in Single Turn 2 | 1 2 . 1 Gunslinging . | . . . . Exploded 1 | . 1 . . Melee 1 | . . . 1 Uniques/NPCs Destroyed . | . . . . Combat | -11 -10 -9 -8 -------- Run | Yrd Mat Mat Mat Hostile Shots Fired 233 | . 73 62 98 Missed 77 | . 9 31 37 Hits 156 | . 64 31 61 Projectile 156 | . 64 31 61 Critical Strikes 2 | . . 1 1 Damage Taken 2236 | . 898 271 1067 Core 1241 | . 205 226 810 Absorbed by Shields . | . . . . Redirected to Shielding 15 | . . . 15 Core Remaining (%) 81 | 100 74 71 . Volleys Fired 50 | 5 45 . . Largest 3 | 3 2 . . Hottest 130 | 130 90 . . Shots Fired 73 | 14 59 . . Gun 60 | 14 46 . . Cannon . | . . . . Launcher 13 | . 13 . . Special . | . . . . Kinetic . | . . . . Thermal 60 | 14 46 . . Explosive . | . . . . Electromagnetic 13 | . 13 . . Robot Hit Streak 11 | 5 11 . . Robot Miss Streak 7 | 5 7 . . Penetration Max . | . . . . Secondary Targets 2 | . 2 . . Max Gunslinging Chain 1 | . 1 . . Shots Hit Robots 53 | 6 32 . 15 Core Hits 26 | 4 21 . 1 Critical Kills . | . . . . Critical Parts Destroyed 3 | . . . 3 Critical Strikes 4 | . 1 . 3 Burn 1 | . 1 . . Smash 3 | . . . 3 Melee Attacks 25 | . . . 25 Impact 25 | . . . 25 Slashing . | . . . . Piercing . | . . . . Sneak Attacks 3 | . . . 3 Combat Hostiles 1 | . . . 1 Follow-up Attacks . | . . . . Damage Inflicted 1569 | 82 805 . 682 Guns 452 | 82 370 . . Cannons . | . . . . Explosions 422 | . 422 . . Melee 647 | . . . 647 Ramming 48 | . 13 . 35 Kinetic . | . . . . Thermal 452 | 82 370 . . Explosive . | . . . . Electromagnetic 422 | . 422 . . Impact 647 | . . . 647 Slashing . | . . . . Piercing . | . . . . Highest Corruption 8 | . . . 8 Average Corruption 4 | . . . 4 Corruption Purged . | . . . . Corruption Blocked . | . . . . Effects 4 | . . . 4 Message Errors 1 | . . . 1 Heat Flow Errors 2 | . . . 2 Parts Rejected 1 | . . . 1 Overload Shots . | . . . . Overflow Damage 257 | . 32 . 225 Projectiles . | . . . . Explosions 32 | . 32 . . Melee 225 | . . . 225 Knockbacks . | . . . . Impact . | . . . . Kinetic . | . . . . Secondary . | . . . . Self-Inflicted Damage 143 | . 113 . 30 Shots 6 | . 6 . . Rammed 5 | . 3 . 2 Targets Rammed 5 | . 3 . 2 Kicked . | . . . . Crushed . | . . . . Highest Temperature 550 | 308 550 . 128 Average Temperature 238 | 139 280 . 51 Received Heat Transfer 714 | . 426 9 279 Effects 19 | 1 18 . . Shutdowns 7 | . 7 . . Energy Bleed 4 | . 4 . . Interference 3 | 1 2 . . Matter Decay 3 | . 3 . . Short Circuit 1 | . 1 . . Damage (minor) 1 | . 1 . . Siege Activations . | . . . . Martial Activations . | . . . . Shielding Activations . | . . . . Robots Disrupted . | . . . . Combat Hostiles . | . . . . Robots Corrupted 2 | . . . 2 Combat Hostiles 2 | . . . 2 Parts Fried . | . . . . Impact Corruptions 6 | . . . 6 Robots Melted . | . . . . Combat Hostiles . | . . . . Parts Melted . | . . . . Heat Transferred 1217 | 211 1006 . . Parts Sabotaged . | . . . . Parts Stolen . | . . . . Parts Stripped . | . . . . Power Chain Reactions . | . . . . Alert | -11 -10 -9 -8 ------- Run | Yrd Mat Mat Mat Maximum Alert Level 1 | . . . 1 Low Security (%) 97 | 100 100 100 94 Level 1 2 | . . . 5 Level 2 . | . . . . Level 3 . | . . . . Level 4 . | . . . . Level 5 . | . . . . High Security . | . . . . Max Security . | . . . . Peak Influence 228 | 10 127 144 228 Initial 56 | . 3 34 56 Average 40 | 1 39 42 47 Influence Increases 912 | 20 300 150 442 Destroy 0b10 Robot/C 240 | . 180 . 60 Destroy 0b10 Robot/NC 55 | 20 25 . 10 Destroy Leader 74 | . 50 . 24 Successful Hack 15 | . . . 15 Disable Machine 60 | . 15 . 45 Destroy Structure 3 | . . . 3 Partial Spotted 15 | . . . 15 Lose Combat Pursuer 450 | . 30 150 270 Influence Decreases 692 | 15 223 98 356 Entered New Map 128 | . 2 48 78 Time Decay 447 | 15 161 40 231 Lost Part 110 | . 60 10 40 Purge Threat 7 | . . . 7 Squads Dispatched 16 | . 5 4 7 Investigation 13 | . 5 3 5 Extermination . | . . . . Reinforcement 3 | . . 1 2 Assault . | . . . . Garrison . | . . . . Intercept . | . . . . Searches Triggered . | . . . . Construction Impeded . | . . . . Haulers Reinforced . | . . . . Active Scanning Responses . | . . . . Cargo Convoy Interrupts . | . . . . Stealth | -11 -10 -9 -8 --------- Run | Yrd Mat Mat Mat Distress Signals 3 | . . . 3 Communications Jammed . | . . . . Distress Signals . | . . . . Times Spotted 69 | . 14 18 37 Peak Tracking Total 13 | . 4 11 13 Tactical Retreats 7 | . 1 2 4 Traps | -11 -10 -9 -8 ------- Run | Yrd Mat Mat Mat Traps Triggered 19 | . 7 5 7 Indirectly 3 | . 3 . . Trap Hack Attempts . | . . . . Triggered . | . . . . Disarmed . | . . . . Reprogrammed . | . . . . Reused . | . . . . Traps Extracted . | . . . . Installed . | . . . . Triggered . | . . . . Machines | -11 -10 -9 -8 ---------- Run | Yrd Mat Mat Mat Machines Disabled 4 | . 1 . 3 Max in Single Turn 1 | . 1 . 1 Machines Repaired . | . . . . Machines Dismantled . | . . . . Machines Sabotaged . | . . . . Overloaded Fab Kills . | . . . . Hacking | -11 -10 -9 -8 --------- Run | Yrd Mat Mat Mat Machines Accessed 6 | . . 1 5 Terminals 6 | . . 1 5 Fabricators . | . . . . Repair Stations . | . . . . Recycling Units . | . . . . Scanalyzers . | . . . . Garrison Access . | . . . . Total Hacks 12 | . . 3 9 Successful 6 | . . 1 5 Failed 6 | . . 2 4 Catastrophic . | . . . . Database Lockouts . | . . . . Manual . | . . . . Terminals 12 | . . 3 9 Fabricators . | . . . . Repair Stations . | . . . . Recycling Units . | . . . . Scanalyzers . | . . . . Garrison Access . | . . . . Terminal Hacks 6 | . . 1 5 Branch Access Points 1 | . . . 1 Emergency Access Points 1 | . . . 1 Terminal Index 1 | . . 1 . Unreport Threat 1 | . . . 1 Recall Reinforcements 1 | . . . 1 Hauler Manifests 1 | . . . 1 Fabricator Hacks . | . . . . Repair Station Hacks . | . . . . Recycling Unit Hacks . | . . . . Scanalyzer . | . . . . Garrison Access Hacks . | . . . . Unauthorized Hacks . | . . . . Terminals . | . . . . Fabricators . | . . . . Repair Stations . | . . . . Recycling Units . | . . . . Scanalyzers . | . . . . Garrison Access . | . . . . Data Cores Recovered . | . . . . Used . | . . . . Hacking Detections 2 | . . 1 1 Full Trace Events . | . . . . Feedback Events . | . . . . Feedback Blocked . | . . . . Robot Schematics Acquired . | . . . . Robots Built . | . . . . Authchips . | . . . . Time . | . . . . Total Robot Build Rating . | . . . . Part Schematics Acquired . | . . . . Parts Built . | . . . . Authchips . | . . . . Time . | . . . . Total Part Build Rating . | . . . . Parts Repaired . | . . . . Time . | . . . . Parts Recycled . | . . . . Recycled Matter . | . . . . Retrieved Matter . | . . . . Retrieved Components . | . . . . Parts Scanalyzed . | . . . . Part Schematics Acquired . | . . . . Parts Damaged . | . . . . Bothacking | -11 -10 -9 -8 ------------ Run | Yrd Mat Mat Mat Used RIF Installer . | . . . . Robots Hacked . | . . . . Non-combat . | . . . . Combat . | . . . . Robot Hacks Applied . | . . . . Relay Couplers Released . | . . . . Fabnet Peak Effective % . | . . . . Robots Rewired . | . . . . Allies Hacked . | . . . . Hacks Repelled . | . . . . Allies | -11 -10 -9 -8 -------- Run | Yrd Mat Mat Mat Total Allies . | . . . . Largest Group . | . . . . Highest-Rated Group . | . . . . Highest-Rated Ally . | . . . . Total Orders . | . . . . Ally Attacks . | . . . . Total Damage . | . . . . Kills . | . . . . Allies Corrupted . | . . . . Allies Melted . | . . . . Intel | -11 -10 -9 -8 ------- Run | Yrd Mat Mat Mat Active Infowar (turns) 602 | . . . 602 Optics 133 | . . . 133 Sensors 602 | . . . 602 Robot Analysis Total . | . . . . Derelict Logs Recovered . | . . . . Drone Launches . | . . . . Drone Recoveries . | . . . . Exploration | -11 -10 -9 -8 ------------- Run | Yrd Mat Mat Mat Turns Passed 1476 | 105 613 82 676 Spaces Moved 1135 | 35 318 157 625 Core 512 | 5 92 157 258 Treads 256 | 30 226 . . Legs . | . . . . Wheels . | . . . . Hover . | . . . . Flight 367 | . . . 367 Fastest Speed 32 | 50 50 50 32 Average Speed 79 | 144 136 50 53 Slowest Speed 200 | 160 200 50 100 Overloaded Moves . | . . . . Propulsion Burnouts . | . . . . Robots Hopped 16 | . . . 16 Potential Cave-ins . | . . . . Cave-ins Triggered . | . . . . Exploration Rate (%) 40 | 4 56 34 67 Regions Visited 3 Branch Regions . Pre-discovered Areas . | . . . . Known Exits Taken . | . . . . Unknown Exits Taken 3 | 1 1 1 . Scrap Searched . | . . . . Spaces Dug 3 | . . . 3 Terrain Destroyed 3 | . . . 3 Melee 3 | . . . 3 Projectile . | . . . . AOE . | . . . . Terrain Rammed 1 | . . . 1 Walls Destroyed . | . . . . Machines Disabled 1 | . . . 1 Actions | -11 -10 -9 -8 --------- Run | Yrd Mat Mat Mat Total 1565 | 76 434 158 897 Wait 345 | 31 67 . 247 Move 1102 | 34 317 156 595 Hop 14 | . . . 14 Pick Up . | . . . . Fast Attach 23 | 6 2 2 13 Attach . | . . . . Detach . | . . . . Swap . | . . . . Drop . | . . . . Fire 50 | 5 45 . . Melee 25 | . . . 25 Ram 4 | . 1 . 3 Kick . | . . . . Crush 2 | . 2 . . Escape Stasis . | . . . . Rewire . | . . . . Trap . | . . . . Miscellaneous . | . . . . Route ------- -11/Scrapyard -10/Materials -9/Materials -8/Materials History --------- Turn | Location | Event 3 | -11/Scrapyard | Discovered new exit (range 15) 106 | -11/Scrapyard | Entered Materials 293 | -10/Materials | Lost 3 parts (1n2w) 520 | -10/Materials | Discovered new exit (range 10) 627 | -10/Materials | Discovered new exit (range 9) 632 | -10/Materials | Build established: Gunner 710 | -10/Materials | Lost 4 parts (1p3w) 712 | -10/Materials | Discovered new exit (range 14) 719 | -10/Materials | Entered another Materials area 719 | -9/Materials | Devolved, losing 1 slot: Power x-1 758 | -9/Materials | Discovered new exit (range 14) 794 | -9/Materials | Discovered new exit (range 14) 801 | -9/Materials | Entered another Materials area 801 | -8/Materials | Devolved, losing 1 slot: Utility x-1 889 | -8/Materials | Identified exit to Storage 982 | -8/Materials | Build established: Mutant 1279 | -8/Materials | Discovered new exit (range 4) 1279 | -8/Materials | Identified exit to Factory 1378 | -8/Materials | Core integrity fell below 50% 1389 | -8/Materials | Lost 4 parts (1p2n1w) 1446 | -8/Materials | Core integrity fell below 20% 1459 | -8/Materials | Lost 4 parts (1n3u) 1477 | -8/Materials | Destroyed by G-47 Trooper with Particle Gun Last Messages --------------- 01404_ Triggered Alarm Trap. 01404_ An alarm sounds. 01404_ ALERT: Alarm triggered, dispatching investigation squad. 01406_ W-25 Informer sends out distress signal. 01412_ Connecting with Terminal... 01418_ Penetrated by Slug. 01418_ Imp. Sensor Array destroyed. 01420_ W-25 Informer sends out distress signal. 01420_ O-16 Technician: "IFF HANDSHAKE FAILED. SECURING TERMINAL." 01422_ Q CZISZBYTQ3EON%RSS3QDHJMVO> 01426_ ALERT: Hostiles spotted, dispatching reinforcements to Terminal M001. 01428_ Imp. VTOL Module destroyed. 01467_ Penetrated by Slug. 01467_ Slammed into H-55 Commando. 01470_ System corrupted: Heat flow error (+116). 01470_ Slug penetrates Wall. 01473_ M-13 Machinist destroyed. Map ----- +----------------------------------------------------+ | ???????# """ + ] #????? | | ???????# """ # #????? | | ???????# """ ##+###/#### ! [#######+####+###????? | | ???????# # ## ###????? ?# ?????? | | ???????# # """"""" ## #??????? ?#[ """ ???? | | ???????# # """"""" ## #??????"" # "R" #??? | | ???????# # """"""" ## #??????""" #/ " " #??? | | ???????####### """"""" ## #?????"""" # ??? | | ?????????????# """"""" ## #?????"""" #] / = ##?? | | ??############ ## #???????" !#######???? | | ??# T ####+######## #???????? #?????????? | | ??# # ! #?#g#????????? #?????????? | | ??# ## % #?#t#?????????###?????????? | | ??# ## """ ### #?######??????????????? | | ??# """" ## """"" # g #? #?????????????? | | ??# """" = ## """"" h # """ #?????????????? | | ??# """" ## """"" #Y # """ ! #?????????????? | | ??# ## """ # % + """ #?????????????? | | #######+###### # # [#?????????????? | | #?# # ###########???????????? | | ############ #? #???????????? | | #? ! #???????????? | | ####################### # #???????????? | | #?????????????????# # #???????????? | | " #?????????????????+ ; ! #???????????? | | T #?????????????????# @# #???????????? | | " #?????????????????# # #???????????? | | #?????????????????# #? ]#???????????? | | #?????????????????# #?#########???????????? | | #####?????????????????# #?????????????????????? | | ??????????????????????# #?????????????????????? | | ??????????????????????# #?????????????????????? | | ??????????????????????# gg#?????????????????????? | | ??????????????????????# #?????????????????????? | | ??????????????????????# #?????????????????????? | | ??????????????????????# ??????????????????????? | | ??????????????????????# ??????????????????????? | | ??????????????????????# ??????????????????????? | | ??????????????????????# t ??????????????????????? | | ??????????????????????# u ??????????????????????? | | ??????????????????????? ??????????????????????? | | ????????????????????????????????????????????????? | | ????????????????????????????????????????????????? | | ????????????????????????????????????????????????? | | ????????????????????????????????????????????????? | | ????????????????????????????????????????????????? | | ????????????????????????????????????????????????? | | ????????????????????????????????????????????????? | | ????????????????????????????????????????????????? | | ????????????????????????????????????????????????? | +----------------------------------------------------+ Best States ------------- Heat Dissipation 20 Energy Generation 10 Energy Capacity 250 Matter Stores 300 Matter Capacity 300 Sight Range 20 Robot Scan Range 15 Terrain Scan Density 10 Utility Shielding 33 Evasion (%) 63 Recoil Reduction 2 Defensive Hacking 10 Item Schematics ----------------- None Robot Schematics ------------------ None Fabricated ------------ Nothing Repaired ---------- Nothing Alien Tech Used ----------------- None Achievements -------------- None Challenges ------------ Devolution Gauntlet No Salvage Pure Core Scavenger Simple Hacker Sticky Parts Trapped Game ------ Seed AngularImpactPod Manual? 0 Play Time 00:14:35 Cumulative 484.0 hours Start 2025.09.06 @ 06:29:08 End 2025.09.06 @ 06:41:28 Sessions 1 Manual Loads 0 Difficulty Rogue Special Mode None Game No. 212 Rogue 128 Adventurer 32 Explorer 52 Win Type - Total 55 Types 27/6/9/1/1/2/6/1/1/1 Lore% 95 Gallery% 93 Achievement% 86 Wizard Run 0 Options --------- Layout 2 ASCII 0 Keyboard 0 Movement Mouse Keybinds 1 Fullscreen 1 Font 32/Tamsyn Map View 50x44 Zoom Use 0% Tactical HUD 1 Map Filters NONE Filters NONE Steam 1 RUN: 1a3ecef6-91db-4fb8-a0b2-c697c0634834